[Event "SixDays Budapest IM-B 10-2024"]
[Site "Budapest"]
[Date "2024.09.30"]
[Round "1.1"]
[White "Bhagat Kush"]
[Black "Kao, Jamison Edrich"]
[Result "0-1"]
[ECO "E73"]
[WhiteElo "2245"]
[BlackElo "2125"]
[Annotator "RC"]
[PlyCount "88"]
[EventDate "2024.09.24"]
[EventType "tourn"]
[EventCountry "HUN"]
[SourceTitle "playchess.com"]
[Source "ChessBase"]
[SourceQuality "1"]
[TimeControl "5400+30"]

1. d4 {[%emt 0:02:38]} Nf6 {[%emt 0:00:01]} 2. c4 {[%emt 0:00:09]} g6 {[%emt 0:00:17]} 3. Nc3 {[%emt 0:00:07]} Bg7 {[%emt 0:00:06]} 4. e4 {[%emt 0:00:06]} d6 {[%emt 0:00:02]} 5. Be2 {[%emt 0:00:07]} O-O {[%emt 0:00:21]} 6. Be3 {[%emt 0:00:13]} Na6 {[%emt 0:00:31]} 7. g4 {[%emt 0:01:10]} c5 {[%emt 0:01:19]} 8. d5 {[%emt 0:01:56]} Nc7 {[%emt 0:02:20]} 9. g5 {[%emt 0:03:35]} Nd7 {[%emt 0:10:55]} 10. Nf3 {[%emt 0:01:56]} Nb6 {[%emt 0:00:58]} 11. Nd2 {[%emt 0:14:11]} e6 {[%emt 0:00:52]} 12. h4 {[%emt 0:03:53]} f5 {[%emt 0:04:45]} 13. gxf6 {[%emt 0:02:01]} Qxf6 {[%emt 0:00:23]} 14. Qc2 {[%emt 0:05:24]} exd5 {[%emt 0:06:29]} 15. cxd5 {[%emt 0:00:16]} Nd7 {[%emt 0:00:43]} 16. O-O-O {[%emt 0:04:39]} b5 {[%emt 0:00:16]} 17. Rdg1 {[%emt 0:02:46]} Ba6 {[%emt 0:07:12]} 18. Nd1 {[%emt 0:10:03]} c4 {[%emt 0:10:37]} 19. f4 {[%emt 0:14:33]} Nc5 {[%emt 0:15:07]} 20. e5 {[%emt 0:03:21]} Qf7 {[%emt 0:01:21]} 21. h5 {[%emt 0:12:07]} Nd3+ {[%emt 0:01:50]} 22. Bxd3 {[%emt 0:00:35]} cxd3 {[%emt 0:00:03]} 23. Qxd3 {[%emt 0:02:03]} b4 {[%emt 0:09:38]} 24. hxg6 {[%emt 0:00:52]} Bxd3 {[%emt 0:00:04]} 25. gxf7+ {[%emt 0:00:05]} Rxf7 {[%emt 0:00:07]} 26. Nf2 {[%emt 0:03:45]} Bg6 {[%emt 0:02:48]} 27. e6 {[%emt 0:10:04]} Rf5 {[%emt 0:00:39]} 28. Nde4 {[%emt 0:01:05]} Nxd5 {[%emt 0:02:25]} 29. Kd2 {[%emt 0:00:40]} Nxf4 {[%emt 0:02:27]} 30. Rg5 {[%emt 0:00:34]} Nxe6 {[%emt 0:01:24]} 31. Rxf5 {[%emt 0:00:06]} Bxf5 {[%emt 0:00:03]} 32. b3 {[%emt 0:00:52]} d5 {[%emt 0:01:00]} 33. Nd6 {[%emt 0:00:22]} Bg6 {[%emt 0:00:59]} 34. Ng4 {[%emt 0:00:23]} Rd8 {[%emt 0:01:36]} 35. Nb7 {[%emt 0:00:07]} Rc8 {[%emt 0:01:22]} 36. Nh6+ {[%emt 0:00:57]} Kh8 {[%emt 0:05:20]} 37. Nd6 {[%emt 0:00:06]} Rc2+ {[%emt 0:00:14]} 38. Kd1 {[%emt 0:00:04]} Bc3 {[%emt 0:03:10]} 39. Nhf7+ {[%emt 0:01:04]} Kg7 {[%emt 0:00:15]} 40. Bh6+ {[%emt 0:00:51]} Kg8 {[%emt 0:01:08]} 41. Bc1 {[%emt 0:00:40]} Rxa2 {[%emt 0:00:36]} 42. Nh6+ {[%emt 0:00:05]} Kh8 {[%emt 0:00:38]} 43. Rg1 {[%emt 0:00:49]} Bc2+ {[%emt 0:01:43]} 44. Ke2 {[%emt 0:00:05]} Be4+ {[%emt 0:00:08]} 0-1

[Event "SixDays Budapest IM-B 10-2024"]
[Site "Budapest"]
[Date "2024.09.30"]
[Round "1.2"]
[White "Md Imran"]
[Black "Horvath, David"]
[Result "1/2-1/2"]
[ECO "A05"]
[WhiteElo "2337"]
[BlackElo "2327"]
[Annotator "RC"]
[PlyCount "146"]
[EventDate "2024.09.24"]
[EventType "tourn"]
[EventCountry "HUN"]
[SourceTitle "playchess.com"]
[Source "ChessBase"]
[SourceQuality "1"]
[TimeControl "5400+30"]

1. Nf3 {[%emt 0:00:27]} Nf6 {[%emt 0:01:11]} 2. b3 {[%emt 0:00:04]} d5 {[%emt 0:05:42]} 3. Bb2 {[%emt 0:00:12]} Bf5 {[%emt 0:00:15]} 4. g3 {[%emt 0:03:33]} e6 {[%emt 0:02:22]} 5. Bg2 {[%emt 0:00:17]} Be7 {[%emt 0:02:13]} 6. O-O {[%emt 0:00:26]} O-O {[%emt 0:00:08]} 7. d3 {[%emt 0:00:22]} h6 {[%emt 0:00:41]} 8. c4 {[%emt 0:01:13]} c6 {[%emt 0:03:26]} 9. Nc3 {[%emt 0:02:25]} Nbd7 {[%emt 0:04:55]} 10. Qd2 {[%emt 0:02:29]} a5 {[%emt 0:10:36]} 11. Rad1 {[%emt 0:01:44]} Bh7 {[%emt 0:07:03]} 12. cxd5 {[%emt 0:00:58]} cxd5 {[%emt 0:06:01]} 13. Rc1 {[%emt 0:08:03]} Nc5 {[%emt 0:16:10]} 14. Qe3 {[%emt 0:07:42]} Nfd7 {[%emt 0:12:07]} 15. Bh3 {[%emt 0:04:58]} a4 {[%emt 0:06:59]} 16. bxa4 {[%emt 0:08:25]} Nxa4 {[%emt 0:01:09]} 17. Nxa4 {[%emt 0:00:32]} Rxa4 {[%emt 0:00:10]} 18. Bxe6 {[%emt 0:00:17]} fxe6 {[%emt 0:08:05]} 19. Qxe6+ {[%emt 0:00:30]} Kh8 {[%emt 0:00:07]} 20. Qxd5 {[%emt 0:10:34]} Bg8 {[%emt 0:02:15]} 21. Qxb7 {[%emt 0:00:33]} Rb4 {[%emt 0:00:23]} 22. Bxg7+ {[%emt 0:02:34]} Kxg7 {[%emt 0:00:05]} 23. Qa7 {[%emt 0:01:02]} Bf6 {[%emt 0:03:33]} 24. a3 {[%emt 0:03:16]} Rb8 {[%emt 0:00:52]} 25. Qa4 {[%emt 0:02:55]} Ne5 {[%emt 0:00:59]} 26. Nd2 {[%emt 0:00:58]} Ra8 {[%emt 0:00:51]} 27. Qb4 {[%emt 0:00:40]} Be7 {[%emt 0:02:03]} 28. Qb2 {[%emt 0:02:28]} Bf6 {[%emt 0:00:59]} 29. Qb4 {[%emt 0:00:02]} Be7 {[%emt 0:00:45]} 30. Qb2 {[%emt 0:00:26]} Qb8 {[%emt 0:00:02]} 31. Qd4 {[%emt 0:00:30]} Bf6 {[%emt 0:01:09]} 32. Qe3 {[%emt 0:00:25]} Bd5 {[%emt 0:01:30]} 33. Rc5 {[%emt 0:01:02]} Qd6 {[%emt 0:00:06]} 34. Rfc1 {[%emt 0:00:46]} Rxa3 {[%emt 0:00:36]} 35. Ne4 {[%emt 0:00:32]} Bxe4 {[%emt 0:01:04]} 36. Qxe4 {[%emt 0:00:02]} Ng6 {[%emt 0:01:08]} 37. h4 {[%emt 0:02:24]} Ra1 {[%emt 0:00:30]} 38. Rxa1 {[%emt 0:01:44]} Qxc5 {[%emt 0:00:05]} 39. Ra6 {[%emt 0:00:34]} Ne7 {[%emt 0:00:43]} 40. Re6 {[%emt 0:01:29]} Rb8 {[%emt 0:00:19]} 41. Qg4+ {[%emt 0:00:54]} Ng6 {[%emt 0:01:05]} 42. h5 {[%emt 0:00:54]} Qg5 {[%emt 0:00:27]} 43. Qxg5 {[%emt 0:00:07]} hxg5 {[%emt 0:00:07]} 44. hxg6 {[%emt 0:00:02]} Kxg6 {[%emt 0:00:10]} 45. Re4 {[%emt 0:00:18]} Kf5 {[%emt 0:00:09]} 46. g4+ {[%emt 0:00:22]} Kg6 {[%emt 0:00:03]} 47. Kg2 {[%emt 0:00:05]} Kf7 {[%emt 0:00:10]} 48. Kf3 {[%emt 0:00:05]} Rb5 {[%emt 0:00:08]} 49. Ra4 {[%emt 0:00:09]} Rb2 {[%emt 0:00:27]} 50. Ra7+ {[%emt 0:00:33]} Be7 {[%emt 0:00:35]} 51. Ra5 {[%emt 0:00:37]} Ke6 {[%emt 0:00:15]} 52. e3 {[%emt 0:00:34]} Rc2 {[%emt 0:00:11]} 53. Rf5 {[%emt 0:00:09]} Rb2 {[%emt 0:01:52]} 54. Ke4 {[%emt 0:00:30]} Rb4+ {[%emt 0:00:09]} 55. d4 {[%emt 0:00:05]} Rb2 {[%emt 0:00:58]} 56. f3 {[%emt 0:00:08]} Rb3 {[%emt 0:00:36]} 57. Re5+ {[%emt 0:00:02]} Kf6 {[%emt 0:01:31]} 58. f4 {[%emt 0:01:17]} gxf4 {[%emt 0:00:21]} 59. exf4 {[%emt 0:00:08]} Bd6 {[%emt 0:00:33]} 60. g5+ {[%emt 0:00:52]} Kf7 {[%emt 0:00:05]} 61. Rf5+ {[%emt 0:00:47]} Ke6 {[%emt 0:00:41]} 62. g6 {[%emt 0:03:18]} Rg3 {[%emt 0:00:53]} 63. d5+ {[%emt 0:00:01]} Ke7 {[%emt 0:00:34]} 64. Rf7+ {[%emt 0:00:09]} Ke8 {[%emt 0:00:33]} 65. Rf6 {[%emt 0:00:34]} Ke7 {[%emt 0:00:28]} 66. Re6+ {[%emt 0:00:09]} Kd7 {[%emt 0:00:12]} 67. Rf6 {[%emt 0:01:43]} Ke7 {[%emt 0:00:08]} 68. Kf5 {[%emt 0:00:30]} Rg1 {[%emt 0:01:09]} 69. Rf7+ {[%emt 0:01:16]} Ke8 {[%emt 0:00:19]} 70. Ra7 {[%emt 0:00:08]} Bxf4 {[%emt 0:00:39]} 71. Kxf4 {[%emt 0:04:21]} Rxg6 {[%emt 0:00:07]} 72. Ke5 {[%emt 0:00:01]} Kd8 {[%emt 0:00:09]} 73. Rh7 {[%emt 0:00:14]} Ra6 {[%emt 0:00:05]} 1/2-1/2

[Event "SixDays Budapest IM-B 10-2024"]
[Site "Budapest"]
[Date "2024.09.30"]
[Round "1.3"]
[White "Fodor, Balazs"]
[Black "Kalosha, Zhiulien Oleksii"]
[Result "0-1"]
[ECO "A05"]
[WhiteElo "2240"]
[BlackElo "2232"]
[Annotator "RC"]
[PlyCount "84"]
[EventDate "2024.09.24"]
[EventType "tourn"]
[EventCountry "HUN"]
[SourceTitle "playchess.com"]
[Source "ChessBase"]
[SourceQuality "1"]
[TimeControl "5400+30"]

1. Nf3 {[%emt 0:01:01]} Nf6 {[%emt 0:00:26]} 2. b3 {[%emt 0:00:28]} d5 {[%emt 0:00:49]} 3. Bb2 {[%emt 0:00:11]} c5 {[%emt 0:02:11]} 4. e3 {[%emt 0:00:08]} a6 {[%emt 0:00:19]} 5. c4 {[%emt 0:00:12]} e6 {[%emt 0:02:20]} 6. cxd5 {[%emt 0:00:08]} exd5 {[%emt 0:02:52]} 7. g3 {[%emt 0:00:10]} Nc6 {[%emt 0:00:46]} 8. Bg2 {[%emt 0:00:21]} Be7 {[%emt 0:01:26]} 9. O-O {[%emt 0:00:11]} O-O {[%emt 0:00:49]} 10. d4 {[%emt 0:00:08]} Bg4 {[%emt 0:08:27]} 11. dxc5 {[%emt 0:00:08]} Bxc5 {[%emt 0:01:29]} 12. Nc3 {[%emt 0:02:06]} h6 {[%emt 0:16:12]} 13. Ne2 {[%emt 0:07:05]} Be7 {[%emt 0:15:56]} 14. h3 {[%emt 0:11:54]} Bf5 {[%emt 0:00:44]} 15. Nfd4 {[%emt 0:00:41]} Bh7 {[%emt 0:01:38]} 16. Nf4 {[%emt 0:06:24]} Qd6 {[%emt 0:09:24]} 17. Qe2 {[%emt 0:16:23]} Rfd8 {[%emt 0:03:49]} 18. Rfd1 {[%emt 0:00:19]} Rac8 {[%emt 0:07:15]} 19. Nxc6 {[%emt 0:02:47]} bxc6 {[%emt 0:00:21]} 20. Qxa6 {[%emt 0:01:04]} g5 {[%emt 0:01:11]} 21. Ne2 {[%emt 0:05:35]} Ra8 {[%emt 0:07:19]} 22. Qb6 {[%emt 0:00:09]} Bc2 {[%emt 0:00:27]} 23. Rdc1 {[%emt 0:06:40]} Nd7 {[%emt 0:01:01]} 24. Qd4 {[%emt 0:12:49]} Bf6 {[%emt 0:00:10]} 25. Qd2 {[%emt 0:00:05]} Bxb2 {[%emt 0:00:20]} 26. Qxc2 {[%emt 0:00:04]} Bxa1 {[%emt 0:00:33]} 27. Rxa1 {[%emt 0:00:07]} Rac8 {[%emt 0:07:16]} 28. Rd1 {[%emt 0:03:18]} Qf6 {[%emt 0:00:50]} 29. Nd4 {[%emt 0:05:30]} c5 {[%emt 0:02:58]} 30. Nf5 {[%emt 0:00:13]} Nb6 {[%emt 0:02:19]} 31. g4 {[%emt 0:01:39]} d4 {[%emt 0:01:57]} 32. Qb2 {[%emt 0:03:02]} Nd5 {[%emt 0:01:08]} 33. Bxd5 {[%emt 0:08:31]} Rxd5 {[%emt 0:00:07]} 34. exd4 {[%emt 0:00:07]} Rcd8 {[%emt 0:01:03]} 35. Qe2 {[%emt 0:03:06]} Kh8 {[%emt 0:00:18]} 36. Rd3 {[%emt 0:00:51]} cxd4 {[%emt 0:00:21]} 37. a4 {[%emt 0:00:57]} Kh7 {[%emt 0:01:39]} 38. b4 {[%emt 0:00:42]} Re5 {[%emt 0:00:43]} 39. Qf3 {[%emt 0:01:28]} Re1+ {[%emt 0:00:17]} 40. Kg2 {[%emt 0:00:13]} Ra1 {[%emt 0:00:48]} 41. a5 {[%emt 0:00:45]} Rd7 {[%emt 0:00:17]} 42. Qe4 {[%emt 0:00:56]} Qe6 {[%emt 0:00:43]} 0-1

[Event "SixDays Budapest IM-B 10-2024"]
[Site "Budapest"]
[Date "2024.09.30"]
[Round "1.4"]
[White "Nemeth, Zalan"]
[Black "Nanditha V"]
[Result "1-0"]
[ECO "E62"]
[WhiteElo "2211"]
[BlackElo "1903"]
[Annotator "RC"]
[PlyCount "115"]
[EventDate "2024.09.24"]
[EventType "tourn"]
[EventCountry "HUN"]
[SourceTitle "playchess.com"]
[Source "ChessBase"]
[SourceQuality "1"]
[TimeControl "5400+30"]

1. d4 {[%emt 0:00:02]} Nf6 {[%emt 0:00:42]} 2. c4 {[%emt 0:00:04]} g6 {[%emt 0:00:05]} 3. g3 {[%emt 0:00:03]} Bg7 {[%emt 0:00:04]} 4. Bg2 {[%emt 0:00:03]} O-O {[%emt 0:00:08]} 5. Nc3 {[%emt 0:00:02]} d6 {[%emt 0:00:06]} 6. Nf3 {[%emt 0:00:03]} Nc6 {[%emt 0:00:32]} 7. O-O {[%emt 0:00:06]} e5 {[%emt 0:00:17]} 8. d5 {[%emt 0:00:05]} Nb8 {[%emt 0:01:54]} 9. e4 {[%emt 0:00:08]} a5 {[%emt 0:02:33]} 10. c5 {[%emt 0:04:22]} Na6 {[%emt 0:15:47]} 11. cxd6 {[%emt 0:00:08]} cxd6 {[%emt 0:03:05]} 12. Nd2 {[%emt 0:03:11]} Bd7 {[%emt 0:05:44]} 13. a4 {[%emt 0:01:46]} Bh6 {[%emt 0:08:47]} 14. Nc4 {[%emt 0:02:49]} Bxc1 {[%emt 0:00:29]} 15. Rxc1 {[%emt 0:00:04]} Ne8 {[%emt 0:07:05]} 16. f4 {[%emt 0:05:52]} f6 {[%emt 0:02:07]} 17. Qf3 {[%emt 0:14:54]} Rc8 {[%emt 0:04:05]} 18. Nb5 {[%emt 0:09:29]} Rxc4 {[%emt 0:09:03]} 19. Rxc4 {[%emt 0:00:06]} Bxb5 {[%emt 0:00:46]} 20. axb5 {[%emt 0:00:05]} Qb6+ {[%emt 0:00:04]} 21. Qf2 {[%emt 0:00:52]} Qxb5 {[%emt 0:00:31]} 22. Rc8 {[%emt 0:01:28]} Qd7 {[%emt 0:04:39]} 23. Ra8 {[%emt 0:01:29]} exf4 {[%emt 0:04:50]} 24. Qxf4 {[%emt 0:01:40]} Kg7 {[%emt 0:07:32]} 25. Qe3 {[%emt 0:07:11]} Qb5 {[%emt 0:01:29]} 26. Qc3 {[%emt 0:01:05]} Rf7 {[%emt 0:02:22]} 27. Bh3 {[%emt 0:07:09]} Nec7 {[%emt 0:02:16]} 28. Rc8 {[%emt 0:02:26]} Qc5+ {[%emt 0:01:55]} 29. Qxc5 {[%emt 0:00:10]} Nxc5 {[%emt 0:00:18]} 30. e5 {[%emt 0:00:22]} dxe5 {[%emt 0:05:25]} 31. Rc1 {[%emt 0:01:36]} b6 {[%emt 0:00:47]} 32. Rxc5 {[%emt 0:00:14]} bxc5 {[%emt 0:02:03]} 33. d6 {[%emt 0:00:05]} f5 {[%emt 0:00:28]} 34. dxc7 {[%emt 0:00:13]} Kh6 {[%emt 0:01:03]} 35. Kf2 {[%emt 0:00:23]} c4 {[%emt 0:01:31]} 36. Bf1 {[%emt 0:00:39]} c3 {[%emt 0:00:20]} 37. bxc3 {[%emt 0:00:04]} a4 {[%emt 0:00:24]} 38. Bc4 {[%emt 0:00:45]} Re7 {[%emt 0:00:07]} 39. h4 {[%emt 0:00:05]} a3 {[%emt 0:01:34]} 40. Ke3 {[%emt 0:00:14]} Kh5 {[%emt 0:00:35]} 41. Be2+ {[%emt 0:00:07]} Kh6 {[%emt 0:00:07]} 42. Ra8 {[%emt 0:00:08]} Rxc7 {[%emt 0:00:08]} 43. Rxa3 {[%emt 0:00:04]} Rc6 {[%emt 0:01:15]} 44. c4 {[%emt 0:00:12]} g5 {[%emt 0:00:18]} 45. hxg5+ {[%emt 0:01:00]} Kxg5 {[%emt 0:00:05]} 46. Ra5 {[%emt 0:00:04]} Kf6 {[%emt 0:00:22]} 47. c5 {[%emt 0:00:10]} Kg5 {[%emt 0:00:04]} 48. Kd3 {[%emt 0:02:06]} h5 {[%emt 0:02:57]} 49. Kc4 {[%emt 0:00:05]} h4 {[%emt 0:00:17]} 50. gxh4+ {[%emt 0:00:05]} Kxh4 {[%emt 0:00:16]} 51. Kd5 {[%emt 0:00:06]} Rc8 {[%emt 0:00:11]} 52. Ba6 {[%emt 0:00:13]} Re8 {[%emt 0:00:53]} 53. c6 {[%emt 0:00:06]} e4 {[%emt 0:00:48]} 54. c7 {[%emt 0:00:06]} e3 {[%emt 0:00:39]} 55. c8=R {[%emt 0:03:52]} Rxc8 {[%emt 0:00:11]} 56. Bxc8 {[%emt 0:00:04]} e2 {[%emt 0:00:16]} 57. Ra1 {[%emt 0:00:05]} Kg3 {[%emt 0:00:31]} 58. Ba6 {[%emt 0:00:05]} 1-0

[Event "SixDays Budapest IM-B 10-2024"]
[Site "Budapest"]
[Date "2024.09.30"]
[Round "1.5"]
[White "To, Nhat Minh"]
[Black "Gatineau, Yovann"]
[Result "1-0"]
[ECO "C01"]
[WhiteElo "2300"]
[BlackElo "2400"]
[Annotator "RC"]
[PlyCount "107"]
[EventDate "2024.09.24"]
[EventType "tourn"]
[EventCountry "HUN"]
[SourceTitle "playchess.com"]
[Source "ChessBase"]
[SourceQuality "1"]
[TimeControl "5400+30"]

1. e4 {[%emt 0:00:01]} e6 {[%emt 0:02:35]} 2. d4 {[%emt 0:00:05]} d5 {[%emt 0:00:07]} 3. exd5 {[%emt 0:00:03]} exd5 {[%emt 0:00:09]} 4. Nf3 {[%emt 0:00:03]} Nc6 {[%emt 0:00:48]} 5. Nc3 {[%emt 0:00:06]} a6 {[%emt 0:00:27]} 6. a3 {[%emt 0:02:24]} Be6 {[%emt 0:04:06]} 7. Bf4 {[%emt 0:03:22]} Bd6 {[%emt 0:02:17]} 8. Qd2 {[%emt 0:00:34]} Nge7 {[%emt 0:03:49]} 9. h3 {[%emt 0:02:29]} h6 {[%emt 0:06:01]} 10. O-O-O {[%emt 0:03:55]} b5 {[%emt 0:05:46]} 11. Bxd6 {[%emt 0:08:05]} cxd6 {[%emt 0:02:54]} 12. Ne2 {[%emt 0:00:50]} g5 {[%emt 0:14:41]} 13. h4 {[%emt 0:00:54]} g4 {[%emt 0:00:12]} 14. Ne1 {[%emt 0:00:13]} b4 {[%emt 0:02:14]} 15. axb4 {[%emt 0:03:37]} Qb6 {[%emt 0:01:25]} 16. c3 {[%emt 0:01:29]} a5 {[%emt 0:02:49]} 17. b5 {[%emt 0:00:01]} Qxb5 {[%emt 0:00:24]} 18. Nf4 {[%emt 0:00:01]} Qb6 {[%emt 0:02:04]} 19. Nc2 {[%emt 0:00:02]} Kd7 {[%emt 0:14:44]} 20. Na3 {[%emt 0:02:10]} Rae8 {[%emt 0:02:58]} 21. Bd3 {[%emt 0:02:00]} Ng8 {[%emt 0:01:25]} 22. Nh5 {[%emt 0:01:29]} Rc8 {[%emt 0:03:04]} 23. Qf4 {[%emt 0:03:25]} Nb4 {[%emt 0:03:28]} 24. Bb1 {[%emt 0:05:55]} Qc6 {[%emt 0:04:12]} 25. Rhe1 {[%emt 0:02:16]} Ne7 {[%emt 0:01:59]} 26. Kd2 {[%emt 0:03:51]} Na6 {[%emt 0:02:25]} 27. Re2 {[%emt 0:06:00]} Nc7 {[%emt 0:01:06]} 28. Nf6+ {[%emt 0:05:58]} Kd8 {[%emt 0:00:09]} 29. Ke1 {[%emt 0:04:58]} Rb8 {[%emt 0:00:10]} 30. Kf1 {[%emt 0:01:42]} h5 {[%emt 0:04:04]} 31. Qg5 {[%emt 0:03:53]} Ne8 {[%emt 0:00:45]} 32. Nxh5 {[%emt 0:03:32]} Qd7 {[%emt 0:01:00]} 33. Nf6 {[%emt 0:08:06]} Nxf6 {[%emt 0:01:05]} 34. Qxf6 {[%emt 0:00:05]} Kc7 {[%emt 0:00:17]} 35. g3 {[%emt 0:02:12]} Rbe8 {[%emt 0:01:19]} 36. Bd3 {[%emt 0:02:07]} Nc6 {[%emt 0:01:12]} 37. Rde1 {[%emt 0:04:36]} Qe7 {[%emt 0:02:13]} 38. Qf4 {[%emt 0:00:23]} Rh5 {[%emt 0:00:55]} 39. Kg1 {[%emt 0:03:23]} Reh8 {[%emt 0:00:28]} 40. Nb5+ {[%emt 0:00:52]} Kd7 {[%emt 0:00:33]} 41. b3 {[%emt 0:01:32]} Ne5 {[%emt 0:03:28]} 42. dxe5 {[%emt 0:02:26]} Rxh4 {[%emt 0:00:05]} 43. f3 {[%emt 0:02:22]} gxf3 {[%emt 0:03:20]} 44. gxh4 {[%emt 0:01:56]} fxe2 {[%emt 0:00:17]} 45. exd6 {[%emt 0:03:41]} Qd8 {[%emt 0:00:20]} 46. Rxe2 {[%emt 0:00:42]} Rxh4 {[%emt 0:00:16]} 47. Qe3 {[%emt 0:00:36]} d4 {[%emt 0:00:24]} 48. Nxd4 {[%emt 0:00:41]} Qg8+ {[%emt 0:01:51]} 49. Rg2 {[%emt 0:00:33]} Qh8 {[%emt 0:00:12]} 50. Nxe6 {[%emt 0:01:07]} Rh1+ {[%emt 0:00:52]} 51. Kf2 {[%emt 0:00:05]} Qh4+ {[%emt 0:00:40]} 52. Qg3 {[%emt 0:00:07]} Qf6+ {[%emt 0:00:45]} 53. Nf4 {[%emt 0:00:32]} Qxd6 {[%emt 0:00:18]} 54. Qe3 {[%emt 0:00:44]} 1-0

[Event "SixDays Budapest IM-B 10-2024"]
[Site "Budapest"]
[Date "2024.10.01"]
[Round "2.1"]
[White "Kao, Jamison Edrich"]
[Black "Gatineau, Yovann"]
[Result "0-1"]
[ECO "B12"]
[WhiteElo "2125"]
[BlackElo "2400"]
[Annotator "RC"]
[PlyCount "188"]
[EventDate "2024.09.24"]
[EventType "tourn"]
[EventCountry "HUN"]
[SourceTitle "playchess.com"]
[Source "ChessBase"]
[SourceQuality "1"]
[TimeControl "5400+30"]

1. e4 {[%emt 0:01:03]} c6 {[%emt 0:03:02]} 2. d4 {[%emt 0:01:16]} d5 {[%emt 0:00:08]} 3. e5 {[%emt 0:00:13]} c5 {[%emt 0:00:05]} 4. c4 {[%emt 0:00:17]} cxd4 {[%emt 0:00:43]} 5. Nf3 {[%emt 0:00:17]} e6 {[%emt 0:01:06]} 6. Nxd4 {[%emt 0:00:17]} dxc4 {[%emt 0:01:02]} 7. Nc3 {[%emt 0:04:42]} Bd7 {[%emt 0:02:53]} 8. Bxc4 {[%emt 0:01:30]} Nc6 {[%emt 0:00:08]} 9. Nf3 {[%emt 0:01:33]} Nge7 {[%emt 0:08:52]} 10. O-O {[%emt 0:00:34]} Ng6 {[%emt 0:00:15]} 11. Qe2 {[%emt 0:00:57]} a6 {[%emt 0:00:45]} 12. Bd2 {[%emt 0:09:01]} Be7 {[%emt 0:11:29]} 13. Rfe1 {[%emt 0:00:40]} O-O {[%emt 0:03:36]} 14. g3 {[%emt 0:05:50]} b5 {[%emt 0:03:33]} 15. Bb3 {[%emt 0:02:05]} b4 {[%emt 0:04:19]} 16. Na4 {[%emt 0:03:21]} Ncxe5 {[%emt 0:06:43]} 17. Nxe5 {[%emt 0:00:43]} Nxe5 {[%emt 0:00:04]} 18. Rad1 {[%emt 0:05:06]} Ng6 {[%emt 0:01:30]} 19. Be3 {[%emt 0:03:38]} Qe8 {[%emt 0:04:12]} 20. Rxd7 {[%emt 0:06:09]} Qxd7 {[%emt 0:00:08]} 21. Nb6 {[%emt 0:00:02]} Qb7 {[%emt 0:02:02]} 22. Nxa8 {[%emt 0:00:06]} Rxa8 {[%emt 0:00:36]} 23. Bd4 {[%emt 0:07:39]} Rd8 {[%emt 0:01:05]} 24. Qg4 {[%emt 0:01:29]} Bf6 {[%emt 0:09:43]} 25. Bxf6 {[%emt 0:03:32]} gxf6 {[%emt 0:00:02]} 26. h4 {[%emt 0:01:23]} Kf8 {[%emt 0:01:57]} 27. Qe4 {[%emt 0:02:58]} Qxe4 {[%emt 0:04:55]} 28. Rxe4 {[%emt 0:00:04]} a5 {[%emt 0:00:05]} 29. Rc4 {[%emt 0:00:26]} Ne5 {[%emt 0:01:13]} 30. Rc5 {[%emt 0:00:10]} Ra8 {[%emt 0:04:46]} 31. Bc2 {[%emt 0:06:54]} h6 {[%emt 0:01:23]} 32. a3 {[%emt 0:01:08]} bxa3 {[%emt 0:02:20]} 33. bxa3 {[%emt 0:00:39]} Ke7 {[%emt 0:00:23]} 34. Be4 {[%emt 0:01:45]} Ra7 {[%emt 0:00:06]} 35. a4 {[%emt 0:02:52]} Kd6 {[%emt 0:00:36]} 36. Rb5 {[%emt 0:00:04]} f5 {[%emt 0:01:50]} 37. f4 {[%emt 0:06:24]} Nd7 {[%emt 0:00:41]} 38. Bf3 {[%emt 0:01:03]} Nc5 {[%emt 0:00:35]} 39. Rb6+ {[%emt 0:00:18]} Ke7 {[%emt 0:00:08]} 40. Bc6 {[%emt 0:00:35]} Kd8 {[%emt 0:11:45]} 41. Bb5 {[%emt 0:01:42]} Ne4 {[%emt 0:00:53]} 42. Kg2 {[%emt 0:01:21]} Nc3 {[%emt 0:01:49]} 43. Kh3 {[%emt 0:02:25]} Nd5 {[%emt 0:00:49]} 44. Rd6+ {[%emt 0:05:24]} Ke7 {[%emt 0:00:06]} 45. Rc6 {[%emt 0:00:01]} Nb4 {[%emt 0:00:13]} 46. Rc1 {[%emt 0:01:41]} Kf6 {[%emt 0:00:52]} 47. Rc8 {[%emt 0:00:54]} Nd5 {[%emt 0:00:32]} 48. Rc6 {[%emt 0:00:44]} Ra8 {[%emt 0:01:50]} 49. Kg2 {[%emt 0:00:31]} Nb4 {[%emt 0:00:54]} 50. Rc7 {[%emt 0:00:47]} Nd5 {[%emt 0:00:52]} 51. Rc6 {[%emt 0:00:14]} Ra7 {[%emt 0:00:57]} 52. Kh3 {[%emt 0:01:11]} Ne3 {[%emt 0:01:12]} 53. Rc3 {[%emt 0:01:03]} Nd1 {[%emt 0:01:12]} 54. Rc1 {[%emt 0:00:55]} Nf2+ {[%emt 0:00:06]} 55. Kg2 {[%emt 0:00:07]} Ne4 {[%emt 0:00:08]} 56. Kf3 {[%emt 0:00:09]} Nd6 {[%emt 0:01:03]} 57. Rc5 {[%emt 0:01:19]} Ke7 {[%emt 0:01:54]} 58. Bd3 {[%emt 0:01:33]} Rd7 {[%emt 0:01:21]} 59. Ke3 {[%emt 0:00:54]} Nb7 {[%emt 0:00:26]} 60. Rb5 {[%emt 0:00:07]} Kd8 {[%emt 0:00:18]} 61. Be2 {[%emt 0:00:39]} Kc8 {[%emt 0:00:57]} 62. g4 {[%emt 0:01:14]} fxg4 {[%emt 0:00:32]} 63. Bxg4 {[%emt 0:00:04]} f5 {[%emt 0:00:54]} 64. Bf3 {[%emt 0:00:08]} Nd6 {[%emt 0:00:14]} 65. Rc5+ {[%emt 0:01:38]} Kd8 {[%emt 0:00:06]} 66. Be2 {[%emt 0:00:14]} Ra7 {[%emt 0:01:01]} 67. h5 {[%emt 0:02:33]} Kd7 {[%emt 0:00:33]} 68. Bb5+ {[%emt 0:01:01]} Ke7 {[%emt 0:00:24]} 69. Be2 {[%emt 0:00:25]} Ne4 {[%emt 0:00:16]} 70. Re5 {[%emt 0:00:51]} Nf6 {[%emt 0:00:37]} 71. Bf3 {[%emt 0:01:06]} Kd6 {[%emt 0:00:43]} 72. Kd4 {[%emt 0:00:17]} Nd7 {[%emt 0:01:04]} 73. Rb5 {[%emt 0:00:12]} Ra6 {[%emt 0:00:18]} 74. Be2 {[%emt 0:01:11]} Ra8 {[%emt 0:00:28]} 75. Bc4 {[%emt 0:01:07]} Ra7 {[%emt 0:00:32]} 76. Be2 {[%emt 0:00:30]} Ke7 {[%emt 0:01:04]} 77. Bf3 {[%emt 0:00:46]} Ra6 {[%emt 0:00:25]} 78. Ke3 {[%emt 0:00:11]} Nf6 {[%emt 0:00:31]} 79. Rb7+ {[%emt 0:01:04]} Kd6 {[%emt 0:00:30]} 80. Kd4 {[%emt 0:00:26]} Nd7 {[%emt 0:00:06]} 81. Rb5 {[%emt 0:00:37]} Rb6 {[%emt 0:00:49]} 82. Rxa5 {[%emt 0:00:23]} Rb4+ {[%emt 0:00:06]} 83. Ke3 {[%emt 0:00:12]} Nc5 {[%emt 0:00:47]} 84. Ra8 {[%emt 0:01:36]} Nxa4 {[%emt 0:00:25]} 85. Rh8 {[%emt 0:01:34]} Nc5 {[%emt 0:00:04]} 86. Rxh6 {[%emt 0:00:12]} Rb3+ {[%emt 0:00:08]} 87. Ke2 {[%emt 0:00:13]} Nd3 {[%emt 0:00:22]} 88. Rh7 {[%emt 0:00:03]} Nxf4+ {[%emt 0:00:06]} 89. Kf2 {[%emt 0:00:23]} Nh3+ {[%emt 0:00:20]} 90. Kg2 {[%emt 0:00:02]} Rxf3 {[%emt 0:00:22]} 91. Rg7 {[%emt 0:00:12]} Ra3 {[%emt 0:00:16]} 92. h6 {[%emt 0:00:09]} Nf4+ {[%emt 0:00:24]} 93. Kf2 {[%emt 0:00:14]} Rh3 {[%emt 0:00:26]} 94. h7 {[%emt 0:00:01]} Ke5 {[%emt 0:00:12]} 0-1